[Event "Late-Titled-Tuesday-Blitz-February-27-2024"]
[Site "Chess.com"]
[Date "2024.02.27"]
[Round "9"]
[White "szachmistrz2500"]
[Black "Yaacovn"]
[Result "0-1"]
[WhiteElo "2466"]
[BlackElo "2846"]
[TimeControl "180+1"]
[EndTime "15:43:56 PST"]
[Termination "Yaacovn won by checkmate"]

1. d4 {[%clk 0:03:00.9]} 1... Nf6 {[%clk 0:02:50.7]} 2. c4 {[%clk 0:03:00.4]}
2... e5 {[%clk 0:02:49.6]} 3. dxe5 {[%clk 0:02:59.8]} 3... Ne4 {[%clk
0:02:49.9]} 4. Nd2 {[%clk 0:02:49.5]} 4... Bb4 {[%clk 0:02:49.6]} 5. a3 {[%clk
0:02:45.8]} 5... Bxd2+ {[%clk 0:02:48.3]} 6. Bxd2 {[%clk 0:02:45.5]} 6... O-O
{[%clk 0:02:48.9]} 7. Nf3 {[%clk 0:02:43.2]} 7... Nc6 {[%clk 0:02:48.6]} 8. e3
{[%clk 0:02:32.6]} 8... Qe7 {[%clk 0:02:37.2]} 9. Bd3 {[%clk 0:02:31.3]} 9...
Nc5 {[%clk 0:02:35.2]} 10. Be2 {[%clk 0:02:27.3]} 10... Nxe5 {[%clk 0:02:34.4]}
11. O-O {[%clk 0:02:25.2]} 11... b6 {[%clk 0:02:33.7]} 12. b4 {[%clk 0:02:23.2]}
12... Ne4 {[%clk 0:02:33.2]} 13. Nxe5 {[%clk 0:02:09]} 13... Qxe5 {[%clk
0:02:32.9]} 14. Qc2 {[%clk 0:02:03.2]} 14... Bb7 {[%clk 0:02:31.3]} 15. Rad1
{[%clk 0:01:59.5]} 15... d6 {[%clk 0:02:23.9]} 16. Bc1 {[%clk 0:01:57.8]} 16...
Qc3 {[%clk 0:02:03.8]} 17. Bd3 {[%clk 0:01:47.6]} 17... Qxc2 {[%clk 0:01:59.5]}
18. Bxc2 {[%clk 0:01:47.6]} 18... a5 {[%clk 0:02:00.1]} 19. f3 {[%clk
0:01:38.4]} 19... Nc3 {[%clk 0:01:55.5]} 20. Rd2 {[%clk 0:01:26.7]} 20... axb4
{[%clk 0:01:55.3]} 21. axb4 {[%clk 0:01:26.5]} 21... Ra2 {[%clk 0:01:53.8]} 22.
Bb2 {[%clk 0:01:20.5]} 22... Rxb2 {[%clk 0:01:48.5]} 23. Bxh7+ {[%clk
0:01:20.4]} 23... Kxh7 {[%clk 0:01:48.7]} 24. Rxb2 {[%clk 0:01:21]} 24... Ra8
{[%clk 0:01:45.9]} 25. Rc1 {[%clk 0:01:18.6]} 25... Ra3 {[%clk 0:01:44.2]} 26.
c5 {[%clk 0:01:04.9]} 26... dxc5 {[%clk 0:01:33.7]} 27. bxc5 {[%clk 0:01:05]}
27... b5 {[%clk 0:01:34.3]} 28. e4 {[%clk 0:00:59.7]} 28... b4 {[%clk
0:01:26.3]} 29. Rxb4 {[%clk 0:00:54.5]} 29... Ne2+ {[%clk 0:01:25.6]} 30. Kf2
{[%clk 0:00:53.2]} 30... Nxc1 {[%clk 0:01:25.6]} 31. Rxb7 {[%clk 0:00:53.5]}
31... Ra2+ {[%clk 0:01:23]} 32. Kg3 {[%clk 0:00:50.1]} 32... Ne2+ {[%clk
0:01:21.4]} 33. Kh3 {[%clk 0:00:50.6]} 33... Nf4+ {[%clk 0:01:21]} 34. Kg4
{[%clk 0:00:51.1]} 34... Ne6 {[%clk 0:01:20.2]} 35. f4 {[%clk 0:00:45.6]} 35...
Nxc5 {[%clk 0:01:12.9]} 36. Rxc7 {[%clk 0:00:44.4]} 36... Nxe4 {[%clk
0:01:13.1]} 37. Rxf7 {[%clk 0:00:36.4]} 37... Rxg2+ {[%clk 0:01:02.4]} 38. Kf3
{[%clk 0:00:35.7]} 38... Nd6 {[%clk 0:01:02.5]} 39. Rd7 {[%clk 0:00:31.4]} 39...
Rg6 {[%clk 0:01:02.2]} 40. Ra7 {[%clk 0:00:28.1]} 40... Rf6 {[%clk 0:01:01]} 41.
Kg4 {[%clk 0:00:27.6]} 41... Nf5 {[%clk 0:01:00.5]} 42. Ra3 {[%clk 0:00:27]}
42... Nh6+ {[%clk 0:01:00.1]} 43. Kf3 {[%clk 0:00:25.1]} 43... Rb6 {[%clk
0:00:58.2]} 44. Rc3 {[%clk 0:00:24.4]} 44... Rb7 {[%clk 0:00:57.5]} 45. h3
{[%clk 0:00:24.6]} 45... g6 {[%clk 0:00:57.6]} 46. Rc6 {[%clk 0:00:23.9]} 46...
Nf5 {[%clk 0:00:57.5]} 47. Ra6 {[%clk 0:00:23.8]} 47... Kh6 {[%clk 0:00:57.4]}
48. Ra8 {[%clk 0:00:23.3]} 48... Rb3+ {[%clk 0:00:57.4]} 49. Kg2 {[%clk
0:00:21.7]} 49... Rg3+ {[%clk 0:00:57.5]} 50. Kh2 {[%clk 0:00:21.8]} 50... Rf3
{[%clk 0:00:58]} 51. Ra4 {[%clk 0:00:21.4]} 51... Rf2+ {[%clk 0:00:58]} 52. Kg1
{[%clk 0:00:21.7]} 52... Rb2 {[%clk 0:00:57.6]} 53. Ra8 {[%clk 0:00:20.4]} 53...
Nd4 {[%clk 0:00:55]} 54. Rh8+ {[%clk 0:00:18.6]} 54... Kg7 {[%clk 0:00:54.6]}
55. Rd8 {[%clk 0:00:18.8]} 55... Ne2+ {[%clk 0:00:54.4]} 56. Kf2 {[%clk
0:00:17.6]} 56... Nxf4+ {[%clk 0:00:54.8]} 57. Kg3 {[%clk 0:00:18.1]} 57... Nh5+
{[%clk 0:00:54.9]} 58. Kg4 {[%clk 0:00:17.7]} 58... Rb4+ {[%clk 0:00:53.7]} 59.
Kg5 {[%clk 0:00:17.8]} 59... Nf6 {[%clk 0:00:50.8]} 60. Ra8 {[%clk 0:00:14.7]}
60... Nh7# {[%clk 0:00:50.6]} 0-1

[Event "Late-Titled-Tuesday-Blitz-February-27-2024"]
[Site "Chess.com"]
[Date "2024.02.27"]
[Round "9"]
[White "Polish_fighter3000"]
[Black "SpeedofLight0"]
[Result "0-1"]
[WhiteElo "3110"]
[BlackElo "3077"]
[TimeControl "180+1"]
[EndTime "15:43:57 PST"]
[Termination "SpeedofLight0 won by checkmate"]

1. d4 {[%clk 0:03:00.9]} 1... Nf6 {[%clk 0:02:58.5]} 2. c4 {[%clk 0:03:00.1]}
2... d6 {[%clk 0:02:58.7]} 3. Nf3 {[%clk 0:02:59.1]} 3... Nbd7 {[%clk
0:02:58.3]} 4. Nc3 {[%clk 0:02:57.2]} 4... e5 {[%clk 0:02:58.2]} 5. e4 {[%clk
0:02:54.9]} 5... g6 {[%clk 0:02:57.7]} 6. Be2 {[%clk 0:02:54.4]} 6... Bg7 {[%clk
0:02:57.7]} 7. O-O {[%clk 0:02:55]} 7... O-O {[%clk 0:02:58.4]} 8. Re1 {[%clk
0:02:52.8]} 8... Re8 {[%clk 0:02:58.1]} 9. Bf1 {[%clk 0:02:44.8]} 9... exd4
{[%clk 0:02:55]} 10. Nxd4 {[%clk 0:02:45.7]} 10... Nc5 {[%clk 0:02:55.3]} 11. f3
{[%clk 0:02:44.8]} 11... c6 {[%clk 0:02:54.6]} 12. Be3 {[%clk 0:02:44.7]} 12...
a5 {[%clk 0:02:53.4]} 13. Qd2 {[%clk 0:02:44.2]} 13... Be6 {[%clk 0:02:42]} 14.
b3 {[%clk 0:02:42.1]} 14... Qc7 {[%clk 0:02:38.9]} 15. Rad1 {[%clk 0:02:41.2]}
15... Rad8 {[%clk 0:02:38.5]} 16. Qf2 {[%clk 0:01:57.1]} 16... Bc8 {[%clk
0:02:31.5]} 17. Rd2 {[%clk 0:01:57]} 17... Nfd7 {[%clk 0:02:28.9]} 18. Red1
{[%clk 0:01:56.2]} 18... Ne5 {[%clk 0:02:29]} 19. Bg5 {[%clk 0:01:53.6]} 19...
f6 {[%clk 0:02:20.1]} 20. Be3 {[%clk 0:01:53.6]} 20... Qe7 {[%clk 0:02:10.4]}
21. h3 {[%clk 0:01:46]} 21... f5 {[%clk 0:02:06.5]} 22. Qg3 {[%clk 0:00:52.8]}
22... Nf7 {[%clk 0:01:56.1]} 23. Bd3 {[%clk 0:00:41.3]} 23... f4 {[%clk
0:01:43]} 24. Qxf4 {[%clk 0:00:30.5]} 24... Be5 {[%clk 0:01:42.6]} 25. Bc2
{[%clk 0:00:30.5]} 25... Bxf4 {[%clk 0:01:29.8]} 26. Bxf4 {[%clk 0:00:31.4]}
26... Ne5 {[%clk 0:01:30.1]} 27. Kh2 {[%clk 0:00:31.1]} 27... Ne6 {[%clk
0:01:27.2]} 28. Bg3 {[%clk 0:00:27.9]} 28... g5 {[%clk 0:01:18.5]} 29. Nf5
{[%clk 0:00:27.2]} 29... Qf6 {[%clk 0:01:09.3]} 30. Ne2 {[%clk 0:00:27.3]} 30...
h5 {[%clk 0:00:58.7]} 31. Nxd6 {[%clk 0:00:25.7]} 31... h4 {[%clk 0:00:55.7]}
32. Bf2 {[%clk 0:00:21.6]} 32... Rf8 {[%clk 0:00:50.9]} 33. Bb6 {[%clk
0:00:17.6]} 33... Rd7 {[%clk 0:00:42.5]} 34. a3 {[%clk 0:00:14.2]} 34... Nf4
{[%clk 0:00:39.6]} 35. Ng1 {[%clk 0:00:08.7]} 35... Nh5 {[%clk 0:00:33.6]} 36.
Ne2 {[%clk 0:00:07.6]} 36... Ng3 {[%clk 0:00:31.8]} 37. Nxg3 {[%clk 0:00:03.2]}
37... hxg3+ {[%clk 0:00:32.7]} 38. Kxg3 {[%clk 0:00:03.3]} 38... Nxf3 {[%clk
0:00:26.3]} 39. gxf3 {[%clk 0:00:01.5]} 39... Qxf3+ {[%clk 0:00:27.2]} 40. Kh2
{[%clk 0:00:01.8]} 40... Rh7 {[%clk 0:00:28.1]} 41. Kg1 {[%clk 0:00:01.3]} 41...
Rxh3 {[%clk 0:00:27.9]} 42. Rg2 {[%clk 0:00:01.7]} 42... Rg3 {[%clk 0:00:25.9]}
43. Rd2 {[%clk 0:00:02.2]} 43... Qf1+ {[%clk 0:00:25.4]} 44. Kh2 {[%clk
0:00:02.1]} 44... Rh3# {[%clk 0:00:26.3]} 0-1

[Event "Late-Titled-Tuesday-Blitz-February-27-2024"]
[Site "Chess.com"]
[Date "2024.02.27"]
[Round "9"]
[White "Hikaru"]
[Black "nihalsarin"]
[Result "1-0"]
[WhiteElo "3251"]
[BlackElo "3187"]
[TimeControl "180+1"]
[EndTime "15:43:59 PST"]
[Termination "Hikaru won by resignation"]

1. h3 {[%clk 0:03:00.9]} 1... d5 {[%clk 0:02:59]} 2. d4 {[%clk 0:03:00.5]} 2...
Nf6 {[%clk 0:02:58.6]} 3. Bf4 {[%clk 0:02:59.9]} 3... Bf5 {[%clk 0:02:56.5]} 4.
e3 {[%clk 0:02:55]} 4... e6 {[%clk 0:02:57]} 5. Bd3 {[%clk 0:02:54.8]} 5... Bg6
{[%clk 0:02:56.4]} 6. c4 {[%clk 0:02:52.2]} 6... c5 {[%clk 0:02:50.4]} 7. cxd5
{[%clk 0:02:35.4]} 7... Nxd5 {[%clk 0:02:41.9]} 8. Bxb8 {[%clk 0:02:27.2]} 8...
Qa5+ {[%clk 0:02:40.1]} 9. Qd2 {[%clk 0:02:21]} 9... Qxd2+ {[%clk 0:02:39.4]}
10. Kxd2 {[%clk 0:02:21.9]} 10... Rxb8 {[%clk 0:02:34.4]} 11. Bxg6 {[%clk
0:02:19.2]} 11... hxg6 {[%clk 0:02:35.3]} 12. dxc5 {[%clk 0:02:19.6]} 12... Bxc5
{[%clk 0:02:35]} 13. Nf3 {[%clk 0:02:20]} 13... Ke7 {[%clk 0:02:35]} 14. Ke2
{[%clk 0:02:16.6]} 14... Rbc8 {[%clk 0:02:33.2]} 15. Nbd2 {[%clk 0:02:16]} 15...
Rc6 {[%clk 0:02:31.5]} 16. Rhc1 {[%clk 0:02:10.8]} 16... Rhc8 {[%clk 0:02:31.8]}
17. Ne5 {[%clk 0:02:06.9]} 17... R6c7 {[%clk 0:02:31.9]} 18. Nd3 {[%clk
0:02:07.2]} 18... Bb6 {[%clk 0:02:24]} 19. Rxc7+ {[%clk 0:02:01]} 19... Rxc7
{[%clk 0:02:24.9]} 20. Rc1 {[%clk 0:02:01.2]} 20... Rxc1 {[%clk 0:02:24.7]} 21.
Nxc1 {[%clk 0:02:02.1]} 21... g5 {[%clk 0:02:22.8]} 22. Nd3 {[%clk 0:01:56.6]}
22... f6 {[%clk 0:02:22.7]} 23. e4 {[%clk 0:01:55.2]} 23... Nc7 {[%clk
0:02:19.9]} 24. Nc4 {[%clk 0:01:50.4]} 24... Bd4 {[%clk 0:02:16]} 25. Na5 {[%clk
0:01:50.4]} 25... Kd7 {[%clk 0:01:54.3]} 26. Nxb7 {[%clk 0:01:45]} 26... e5
{[%clk 0:01:53.4]} 27. Na5 {[%clk 0:01:38.5]} 27... Ne6 {[%clk 0:01:52]} 28. b4
{[%clk 0:00:58.4]} 28... Bb6 {[%clk 0:01:42.8]} 29. Nb3 {[%clk 0:00:57.4]} 29...
Kc6 {[%clk 0:01:42.5]} 30. a4 {[%clk 0:00:57.4]} 30... a6 {[%clk 0:01:43.2]} 31.
f3 {[%clk 0:00:55.2]} 31... Bg1 {[%clk 0:01:28.3]} 32. Kd2 {[%clk 0:00:55.2]}
32... Bb6 {[%clk 0:01:26]} 33. Kc3 {[%clk 0:00:55.7]} 33... Be3 {[%clk
0:01:26.8]} 34. Kc4 {[%clk 0:00:56.1]} 34... g6 {[%clk 0:01:23.9]} 35. Na5+
{[%clk 0:00:51.3]} 35... Kc7 {[%clk 0:01:20.8]} 36. Kd5 {[%clk 0:00:38.7]} 36...
Kd7 {[%clk 0:01:13.9]} 37. Nb3 {[%clk 0:00:36.8]} 37... Nc7+ {[%clk 0:01:12.6]}
38. Kc4 {[%clk 0:00:37.1]} 38... Kc6 {[%clk 0:01:13.5]} 39. Nbc5 {[%clk
0:00:37.7]} 39... Kd6 {[%clk 0:01:12.3]} 40. Nb3 {[%clk 0:00:34.8]} 40... Kc6
{[%clk 0:01:12.1]} 41. Ndc5 {[%clk 0:00:34.1]} 41... Kd6 {[%clk 0:01:11.3]} 42.
b5 {[%clk 0:00:34.3]} 42... axb5+ {[%clk 0:01:11.5]} 43. axb5 {[%clk 0:00:35.2]}
43... Na8 {[%clk 0:01:11.9]} 44. Na4 {[%clk 0:00:35.8]} 44... f5 {[%clk
0:01:07.3]} 45. Kd3 {[%clk 0:00:33.7]} 45... Bg1 {[%clk 0:01:03.5]} 46. Na5
{[%clk 0:00:32.6]} 46... Nc7 {[%clk 0:01:01.1]} 47. Nc4+ {[%clk 0:00:29.9]}
47... Ke6 {[%clk 0:01:01.4]} 48. b6 {[%clk 0:00:29.8]} 48... Na6 {[%clk
0:01:02.1]} 49. Na5 {[%clk 0:00:27.5]} 49... Kd7 {[%clk 0:00:55.3]} 50. Kc4
{[%clk 0:00:27.5]} 50... Kd6 {[%clk 0:00:52.7]} 51. Kb5 {[%clk 0:00:27.4]} 51...
Nb8 {[%clk 0:00:52.7]} 52. Nc4+ {[%clk 0:00:28]} 52... Ke6 {[%clk 0:00:52.7]}
53. Nc5+ {[%clk 0:00:28.7]} 53... Kf6 {[%clk 0:00:51.8]} 54. g4 {[%clk
0:00:26.4]} 54... fxe4 {[%clk 0:00:48.7]} 55. fxe4 {[%clk 0:00:23.4]} 55... Bd4
{[%clk 0:00:45.2]} 56. Na5 {[%clk 0:00:23.9]} 1-0

[Event "Late-Titled-Tuesday-Blitz-February-27-2024"]
[Site "Chess.com"]
[Date "2024.02.27"]
[Round "9"]
[White "jaskol95"]
[Black "lucasmito"]
[Result "1-0"]
[WhiteElo "2580"]
[BlackElo "2808"]
[TimeControl "180+1"]
[EndTime "15:43:59 PST"]
[Termination "jaskol95 won on time"]

1. e4 {[%clk 0:03:00.9]} 1... e5 {[%clk 0:03:00.2]} 2. Nf3 {[%clk 0:03:00.9]}
2... Nc6 {[%clk 0:02:59.7]} 3. Bc4 {[%clk 0:03:01.6]} 3... Nf6 {[%clk
0:02:58.7]} 4. Ng5 {[%clk 0:03:02.1]} 4... d5 {[%clk 0:02:57.6]} 5. exd5 {[%clk
0:03:02.9]} 5... Na5 {[%clk 0:02:57.6]} 6. Bb5+ {[%clk 0:03:03.5]} 6... c6
{[%clk 0:02:57.3]} 7. dxc6 {[%clk 0:03:04.4]} 7... bxc6 {[%clk 0:02:57.9]} 8.
Bd3 {[%clk 0:03:05.1]} 8... Nd5 {[%clk 0:02:56.8]} 9. h4 {[%clk 0:03:02.4]} 9...
Nf4 {[%clk 0:02:22.6]} 10. Bf1 {[%clk 0:02:47]} 10... h6 {[%clk 0:01:49.4]} 11.
Ne4 {[%clk 0:02:38.7]} 11... Bf5 {[%clk 0:01:32.8]} 12. Nbc3 {[%clk 0:02:33.4]}
12... Be7 {[%clk 0:01:29.6]} 13. g3 {[%clk 0:02:30.4]} 13... Ne6 {[%clk
0:01:29.5]} 14. d3 {[%clk 0:02:27.3]} 14... Nd4 {[%clk 0:01:22.2]} 15. Bg2
{[%clk 0:02:23.8]} 15... Qd7 {[%clk 0:01:18.5]} 16. Be3 {[%clk 0:02:10.6]} 16...
O-O {[%clk 0:01:10.5]} 17. O-O {[%clk 0:02:03.6]} 17... Rab8 {[%clk 0:01:05.5]}
18. b3 {[%clk 0:01:58.6]} 18... Bg4 {[%clk 0:01:01.9]} 19. f3 {[%clk 0:01:57.4]}
19... Be6 {[%clk 0:00:38.8]} 20. Ne2 {[%clk 0:01:52.3]} 20... f5 {[%clk
0:00:37.1]} 21. Bxd4 {[%clk 0:01:33.8]} 21... exd4 {[%clk 0:00:33.7]} 22. Nf2
{[%clk 0:01:32.5]} 22... Bd6 {[%clk 0:00:26.8]} 23. Nh3 {[%clk 0:01:25]} 23...
c5 {[%clk 0:00:25.2]} 24. Nef4 {[%clk 0:01:16.4]} 24... Bf7 {[%clk 0:00:25.2]}
25. Re1 {[%clk 0:01:01.5]} 25... Nc6 {[%clk 0:00:25.5]} 26. Qd2 {[%clk
0:00:59.3]} 26... Nb4 {[%clk 0:00:23]} 27. Re2 {[%clk 0:00:45.2]} 27... Qc7
{[%clk 0:00:20.8]} 28. Rae1 {[%clk 0:00:39.8]} 28... Nxa2 {[%clk 0:00:20.6]} 29.
Ne6 {[%clk 0:00:20.2]} 29... Bxe6 {[%clk 0:00:20.6]} 30. Rxe6 {[%clk 0:00:21.1]}
30... Bxg3 {[%clk 0:00:18.6]} 31. Re7 {[%clk 0:00:21.7]} 31... Qd8 {[%clk
0:00:19.2]} 32. R1e6 {[%clk 0:00:18.3]} 32... Nc3 {[%clk 0:00:18.1]} 33. Rxg7+
{[%clk 0:00:15.5]} 33... Kxg7 {[%clk 0:00:12.5]} 34. Qxh6+ {[%clk 0:00:16]}
34... Kg8 {[%clk 0:00:11.8]} 35. Rg6+ {[%clk 0:00:13.7]} 35... Kf7 {[%clk
0:00:11.9]} 36. Qg7+ {[%clk 0:00:14.6]} 36... Ke8 {[%clk 0:00:12.2]} 37. Re6+
{[%clk 0:00:15.5]} 1-0

[Event "Late-Titled-Tuesday-Blitz-February-27-2024"]
[Site "Chess.com"]
[Date "2024.02.27"]
[Round "9"]
[White "rhungaski"]
[Black "becemix"]
[Result "1-0"]
[WhiteElo "2592"]
[BlackElo "2434"]
[TimeControl "180+1"]
[EndTime "15:44:01 PST"]
[Termination "rhungaski won on time"]

1. e4 {[%clk 0:03:00.9]} 1... e5 {[%clk 0:02:59.5]} 2. Nf3 {[%clk 0:02:58.2]}
2... Nc6 {[%clk 0:02:59.8]} 3. d4 {[%clk 0:02:58.3]} 3... exd4 {[%clk
0:02:59.7]} 4. Nxd4 {[%clk 0:02:59.2]} 4... Bb4+ {[%clk 0:03:00]} 5. c3 {[%clk
0:02:57.2]} 5... Bc5 {[%clk 0:03:00.4]} 6. Be3 {[%clk 0:02:56.5]} 6... Bb6
{[%clk 0:03:00.7]} 7. Nf5 {[%clk 0:02:47.2]} 7... g6 {[%clk 0:03:00.3]} 8. Bxb6
{[%clk 0:02:46.3]} 8... axb6 {[%clk 0:03:01.2]} 9. Ne3 {[%clk 0:02:46.1]} 9...
Nf6 {[%clk 0:03:01.7]} 10. f3 {[%clk 0:02:46.5]} 10... O-O {[%clk 0:03:02.2]}
11. c4 {[%clk 0:02:46.9]} 11... Re8 {[%clk 0:03:02]} 12. Nc3 {[%clk 0:02:46.1]}
12... d6 {[%clk 0:03:00.2]} 13. Be2 {[%clk 0:02:42.9]} 13... Be6 {[%clk
0:02:30.4]} 14. O-O {[%clk 0:02:41.3]} 14... Ne7 {[%clk 0:02:18.1]} 15. f4
{[%clk 0:02:28.6]} 15... Bd7 {[%clk 0:02:16.3]} 16. e5 {[%clk 0:02:18.5]} 16...
Nc6 {[%clk 0:02:11.8]} 17. exf6 {[%clk 0:01:55.7]} 17... Rxe3 {[%clk 0:02:12.7]}
18. Nd5 {[%clk 0:01:55.6]} 18... Re8 {[%clk 0:02:01.2]} 19. f5 {[%clk
0:01:55.8]} 19... Re5 {[%clk 0:01:40.2]} 20. Bd3 {[%clk 0:01:48]} 20... Rc8
{[%clk 0:00:47.4]} 21. Qd2 {[%clk 0:01:44.3]} 21... Qf8 {[%clk 0:00:39.3]} 22.
fxg6 {[%clk 0:01:30.2]} 22... hxg6 {[%clk 0:00:38.4]} 23. Qf4 {[%clk 0:01:27.6]}
23... Be6 {[%clk 0:00:37.6]} 24. Qh4 {[%clk 0:00:49.9]} 24... Bxd5 {[%clk
0:00:29.7]} 25. cxd5 {[%clk 0:00:48]} 25... Rh5 {[%clk 0:00:30]} 26. Qg3 {[%clk
0:00:47.7]} 26... Ne5 {[%clk 0:00:29.4]} 27. Be2 {[%clk 0:00:44.7]} 27... Rh7
{[%clk 0:00:24.5]} 28. Bg4 {[%clk 0:00:42.7]} 28... Re8 {[%clk 0:00:22.7]} 29.
Rac1 {[%clk 0:00:41.2]} 29... Qh6 {[%clk 0:00:18.5]} 30. Bh3 {[%clk 0:00:36.4]}
30... c6 {[%clk 0:00:13.4]} 31. dxc6 {[%clk 0:00:35.8]} 31... bxc6 {[%clk
0:00:14.3]} 32. Rcd1 {[%clk 0:00:31]} 32... d5 {[%clk 0:00:10.7]} 33. Rde1
{[%clk 0:00:31.4]} 33... Qh5 {[%clk 0:00:10.8]} 34. Rf5 {[%clk 0:00:28.7]} 34...
Nf3+ {[%clk 0:00:10.5]} 35. gxf3 {[%clk 0:00:16]} 35... Rxe1+ {[%clk 0:00:09.9]}
36. Qxe1 {[%clk 0:00:16.9]} 1-0

[Event "Late-Titled-Tuesday-Blitz-February-27-2024"]
[Site "Chess.com"]
[Date "2024.02.27"]
[Round "9"]
[White "dolynachess"]
[Black "farzadbfd"]
[Result "1/2-1/2"]
[WhiteElo "2493"]
[BlackElo "2681"]
[TimeControl "180+1"]
[EndTime "15:44:04 PST"]
[Termination "Game drawn by repetition"]

1. d4 {[%clk 0:02:53.4]} 1... Nf6 {[%clk 0:02:59.2]} 2. c4 {[%clk 0:02:53.6]}
2... e6 {[%clk 0:02:59.5]} 3. g3 {[%clk 0:02:53.2]} 3... d5 {[%clk 0:02:58.8]}
4. Bg2 {[%clk 0:02:53.7]} 4... Be7 {[%clk 0:02:57.8]} 5. Nf3 {[%clk 0:02:54.2]}
5... O-O {[%clk 0:02:58.2]} 6. O-O {[%clk 0:02:54.8]} 6... dxc4 {[%clk
0:02:58.9]} 7. Ne5 {[%clk 0:02:55.2]} 7... Nc6 {[%clk 0:02:58.7]} 8. Nxc6 {[%clk
0:02:53.4]} 8... bxc6 {[%clk 0:02:59.6]} 9. Na3 {[%clk 0:02:53.8]} 9... Rb8
{[%clk 0:02:54.7]} 10. Nxc4 {[%clk 0:02:52.9]} 10... c5 {[%clk 0:02:52.2]} 11.
Na5 {[%clk 0:02:46.4]} 11... Bd7 {[%clk 0:02:41.5]} 12. dxc5 {[%clk 0:02:34.4]}
12... Bxc5 {[%clk 0:02:40.3]} 13. Nb7 {[%clk 0:02:34.3]} 13... Qe7 {[%clk
0:02:37]} 14. Nxc5 {[%clk 0:02:33.5]} 14... Qxc5 {[%clk 0:02:37.9]} 15. Be3
{[%clk 0:02:30.6]} 15... Qa5 {[%clk 0:02:36.7]} 16. Qc2 {[%clk 0:02:23.3]} 16...
Rfc8 {[%clk 0:02:10.2]} 17. Rfc1 {[%clk 0:02:14.6]} 17... Nd5 {[%clk 0:01:44.8]}
18. Bc5 {[%clk 0:02:10.6]} 18... Bb5 {[%clk 0:01:30.5]} 19. a3 {[%clk
0:01:48.3]} 19... Ba4 {[%clk 0:01:26.1]} 20. Qb1 {[%clk 0:01:20.7]} 20... Rb3
{[%clk 0:01:20.8]} 21. e4 {[%clk 0:01:10.3]} 21... Nc3 {[%clk 0:01:07.6]} 22.
Rxc3 {[%clk 0:00:52.7]} 22... Rxc3 {[%clk 0:01:04.8]} 23. bxc3 {[%clk
0:00:51.3]} 23... Qxc5 {[%clk 0:01:04.6]} 24. Qb4 {[%clk 0:00:42.5]} 24... Qxb4
{[%clk 0:00:43.3]} 25. axb4 {[%clk 0:00:40.9]} 25... Bb5 {[%clk 0:00:38.1]} 26.
Rxa7 {[%clk 0:00:40.5]} 26... h5 {[%clk 0:00:37.2]} 27. Ra5 {[%clk 0:00:30.6]}
27... Be2 {[%clk 0:00:34.4]} 28. Rc5 {[%clk 0:00:19.4]} 28... g6 {[%clk
0:00:34.1]} 29. h4 {[%clk 0:00:16.1]} 29... Kf8 {[%clk 0:00:34.1]} 30. f4 {[%clk
0:00:15.7]} 30... Ke7 {[%clk 0:00:34.2]} 31. Kf2 {[%clk 0:00:15.7]} 31... Bd1
{[%clk 0:00:29.4]} 32. e5 {[%clk 0:00:16.1]} 32... Kd8 {[%clk 0:00:25.9]} 33.
Ke3 {[%clk 0:00:12.9]} 33... Ba4 {[%clk 0:00:20.6]} 34. Be4 {[%clk 0:00:12.3]}
34... Rb8 {[%clk 0:00:20]} 35. Kd4 {[%clk 0:00:11.5]} 35... Rb6 {[%clk
0:00:19.4]} 36. Ra5 {[%clk 0:00:11.3]} 36... Bd7 {[%clk 0:00:18]} 37. Ra8+
{[%clk 0:00:11]} 37... Ke7 {[%clk 0:00:18.7]} 38. Kc5 {[%clk 0:00:09.3]} 38...
Rb5+ {[%clk 0:00:18.8]} 39. Kc4 {[%clk 0:00:08.7]} 39... Rb6 {[%clk 0:00:19.5]}
40. Ra7 {[%clk 0:00:09]} 40... Kd8 {[%clk 0:00:19.6]} 41. Kc5 {[%clk 0:00:08.5]}
41... Rb5+ {[%clk 0:00:19.6]} 42. Kc4 {[%clk 0:00:08.8]} 42... Rb6 {[%clk
0:00:20.5]} 43. Ra8+ {[%clk 0:00:08.8]} 43... Ke7 {[%clk 0:00:20.7]} 44. Ra7
{[%clk 0:00:08.9]} 44... Kd8 {[%clk 0:00:20.8]} 1/2-1/2

[Event "Late-Titled-Tuesday-Blitz-February-27-2024"]
[Site "Chess.com"]
[Date "2024.02.27"]
[Round "9"]
[White "PawnEatingZombie"]
[Black "SocoLoco"]
[Result "0-1"]
[WhiteElo "2166"]
[BlackElo "2216"]
[TimeControl "180+1"]
[EndTime "15:44:04 PST"]
[Termination "SocoLoco won on time"]

1. e4 {[%clk 0:03:00.9]} 1... c5 {[%clk 0:02:58.8]} 2. Nc3 {[%clk 0:03:00.4]}
2... Nc6 {[%clk 0:02:57.2]} 3. f4 {[%clk 0:03:00.5]} 3... g6 {[%clk 0:02:56.7]}
4. Nf3 {[%clk 0:03:00.7]} 4... Bg7 {[%clk 0:02:56.8]} 5. a4 {[%clk 0:03:01]}
5... d6 {[%clk 0:02:55.2]} 6. Bb5 {[%clk 0:03:00.3]} 6... Bd7 {[%clk 0:02:52.5]}
7. d3 {[%clk 0:03:00.5]} 7... a6 {[%clk 0:02:52.5]} 8. Bxc6 {[%clk 0:02:59.2]}
8... Bxc6 {[%clk 0:02:52]} 9. a5 {[%clk 0:02:59.4]} 9... e6 {[%clk 0:02:50.3]}
10. O-O {[%clk 0:02:55.7]} 10... Ne7 {[%clk 0:02:50]} 11. d4 {[%clk 0:02:31.7]}
11... cxd4 {[%clk 0:02:43.7]} 12. Nxd4 {[%clk 0:02:29.7]} 12... O-O {[%clk
0:02:43.9]} 13. Be3 {[%clk 0:02:25.5]} 13... Rc8 {[%clk 0:02:41.4]} 14. f5
{[%clk 0:02:13.9]} 14... exf5 {[%clk 0:02:13.7]} 15. exf5 {[%clk 0:02:12.3]}
15... Nxf5 {[%clk 0:01:48.1]} 16. Nxf5 {[%clk 0:02:07]} 16... gxf5 {[%clk
0:01:46.7]} 17. Bd4 {[%clk 0:01:59.5]} 17... Qg5 {[%clk 0:01:40.1]} 18. Rf2
{[%clk 0:01:56.7]} 18... Be5 {[%clk 0:01:17.8]} 19. Qd3 {[%clk 0:01:42.4]} 19...
f4 {[%clk 0:01:11.6]} 20. Ne4 {[%clk 0:01:15.8]} 20... Qg6 {[%clk 0:01:09.2]}
21. Re1 {[%clk 0:01:07.6]} 21... Rfe8 {[%clk 0:00:58.4]} 22. Rfe2 {[%clk
0:00:47.7]} 22... d5 {[%clk 0:00:25]} 23. Bxe5 {[%clk 0:00:32.8]} 23... dxe4
{[%clk 0:00:21.8]} 24. Qd4 {[%clk 0:00:27.8]} 24... Rcd8 {[%clk 0:00:20.4]} 25.
Qc3 {[%clk 0:00:27.7]} 25... f3 {[%clk 0:00:20]} 26. Rf2 {[%clk 0:00:24.9]}
26... Rd5 {[%clk 0:00:18.2]} 27. Bg3 {[%clk 0:00:23]} 27... f5 {[%clk
0:00:13.3]} 28. gxf3 {[%clk 0:00:22.1]} 28... e3 {[%clk 0:00:11.6]} 29. Rg2
{[%clk 0:00:20.5]} 29... Rd2 {[%clk 0:00:08.3]} 30. Rxe3 {[%clk 0:00:09.4]}
30... Rxg2+ {[%clk 0:00:06.8]} 31. Kxg2 {[%clk 0:00:09.1]} 31... Rxe3 {[%clk
0:00:06.8]} 32. Qxe3 {[%clk 0:00:08.8]} 32... h5 {[%clk 0:00:06.8]} 33. Qf4
{[%clk 0:00:06]} 33... Qe6 {[%clk 0:00:04.9]} 34. h4 {[%clk 0:00:04.9]} 34...
Kf7 {[%clk 0:00:04.9]} 35. Bf2 {[%clk 0:00:02.7]} 35... Qg6+ {[%clk 0:00:05.8]}
36. Kh2 {[%clk 0:00:02.1]} 36... Qf6 {[%clk 0:00:05.9]} 37. Qc7+ {[%clk
0:00:01.5]} 37... Kg6 {[%clk 0:00:05.6]} 0-1